[Event "Titled Tuesday Blitz January 03 Early 2023"]
[White "Bluebaum, Matthias"]
[Black "Rustemov, Alexander"]
[WhiteFideId "24651516"]
[BlackFideId "4119002"]
[WhiteElo "2669"]
[BlackElo "2525"]
[Result "1-0"]
[Round "03"]
[TimeControl "180+2"]
[Date "2023.01.03"]
[WhiteClock "0:00:10"]
[BlackClock "0:00:01"]

1. d4 {[%clk 0:03:00]}  d5 {[%clk 0:02:57]} 2. c4 {[%clk 0:03:01]}  dxc4 {[%clk 0:02:56]} 3. e4 {[%clk 0:03:01]}  Nf6 {[%clk 0:02:56]} 4. e5 {[%clk 0:03:02]}  Nd5 {[%clk 0:02:56]} 5. Bxc4 {[%clk 0:03:02]}  Nb6 {[%clk 0:02:57]} 6. Bb3 {[%clk 0:03:02]}  Nc6 {[%clk 0:02:57]} 7. Ne2 {[%clk 0:03:03]}  Bf5 {[%clk 0:02:55]} 8. Nbc3 {[%clk 0:03:02]}  e6 {[%clk 0:02:55]} 9. O-O {[%clk 0:03:03]}  Qd7 {[%clk 0:02:48]} 10. Be3 {[%clk 0:03:03]}  Na5 {[%clk 0:02:46]} 11. Bc2 {[%clk 0:02:58]}  Bxc2 {[%clk 0:02:45]} 12. Qxc2 {[%clk 0:02:59]}  Nc6 {[%clk 0:02:41]} 13. Ne4 {[%clk 0:02:59]}  Nb4 {[%clk 0:02:38]} 14. Qb3 {[%clk 0:02:56]}  Qa4 {[%clk 0:02:34]} 15. Qc3 {[%clk 0:02:22]}  N6d5 {[%clk 0:02:26]} 16. Qc4 {[%clk 0:02:23]}  Qc2 {[%clk 0:02:24]} 17. N2c3 {[%clk 0:02:09]}  Qd3 {[%clk 0:02:23]} 18. Qxd3 {[%clk 0:01:44]}  Nxd3 {[%clk 0:02:22]} 19. Nxd5 {[%clk 0:01:44]}  exd5 {[%clk 0:02:23]} 20. Nc3 {[%clk 0:01:45]}  c6 {[%clk 0:02:21]} 21. Rab1 {[%clk 0:01:41]}  Nb4 {[%clk 0:02:16]} 22. f4 {[%clk 0:01:39]}  f5 {[%clk 0:02:07]} 23. a3 {[%clk 0:01:29]}  Na6 {[%clk 0:02:07]} 24. g4 {[%clk 0:01:27]}  g6 {[%clk 0:02:00]} 25. h3 {[%clk 0:01:26]}  Nc7 {[%clk 0:01:51]} 26. Ne2 {[%clk 0:01:26]}  Kd7 {[%clk 0:01:49]} 27. Ng3 {[%clk 0:01:25]}  Ke6 {[%clk 0:01:47]} 28. Kf2 {[%clk 0:01:23]}  Be7 {[%clk 0:01:46]} 29. Kf3 {[%clk 0:01:23]}  Bh4 {[%clk 0:01:43]} 30. gxf5+ {[%clk 0:01:20]}  gxf5 {[%clk 0:01:43]} 31. Nh5 {[%clk 0:01:21]}  Rhg8 {[%clk 0:01:41]} 32. Rg1 {[%clk 0:01:22]}  Rg6 {[%clk 0:01:40]} 33. Ng7+ {[%clk 0:01:21]}  Kf7 {[%clk 0:01:27]} 34. Nxf5 {[%clk 0:01:21]}  Bd8 {[%clk 0:01:22]} 35. Nd6+ {[%clk 0:01:20]}  Kf8 {[%clk 0:01:18]} 36. f5 {[%clk 0:01:20]}  Rxd6 {[%clk 0:01:12]} 37. exd6 {[%clk 0:01:20]}  Nb5 {[%clk 0:01:13]} 38. d7 {[%clk 0:01:15]}  Bf6 {[%clk 0:01:09]} 39. a4 {[%clk 0:01:05]}  Nd6 {[%clk 0:01:01]} 40. Rbe1 {[%clk 0:00:53]}  Rd8 {[%clk 0:01:00]} 41. Bf4 {[%clk 0:00:53]}  Rxd7 {[%clk 0:01:00]} 42. Re6 {[%clk 0:00:36]}  Ne8 {[%clk 0:01:00]} 43. Be5 {[%clk 0:00:37]}  Rf7 {[%clk 0:00:55]} 44. Bxf6 {[%clk 0:00:30]}  Nxf6 {[%clk 0:00:54]} 45. Kf4 {[%clk 0:00:31]}  a5 {[%clk 0:00:44]} 46. Rge1 {[%clk 0:00:28]}  Ne4 {[%clk 0:00:39]} 47. Ke5 {[%clk 0:00:28]}  Rg7 {[%clk 0:00:38]} 48. Rf1 {[%clk 0:00:23]}  Kf7 {[%clk 0:00:36]} 49. f6 {[%clk 0:00:18]}  Rg5+ {[%clk 0:00:36]} 50. Rf5 {[%clk 0:00:18]}  Rg2 {[%clk 0:00:31]} 51. Re7+ {[%clk 0:00:18]}  Kf8 {[%clk 0:00:29]} 52. Rxb7 {[%clk 0:00:18]}  Re2 {[%clk 0:00:25]} 53. Rb8+ {[%clk 0:00:17]}  Kf7 {[%clk 0:00:26]} 54. Kf4 {[%clk 0:00:08]}  Rf2+ {[%clk 0:00:26]} 55. Ke5 {[%clk 0:00:07]}  Re2 {[%clk 0:00:26]} 56. Rf4 {[%clk 0:00:03]}  Ng5+ {[%clk 0:00:04]} 57. Kd6 {[%clk 0:00:04]}  Re6+ {[%clk 0:00:04]} 58. Kd7 {[%clk 0:00:04]}  Ne4 {[%clk 0:00:04]} 59. Rf8+ {[%clk 0:00:04]}  Kxf8 {[%clk 0:00:02]} 60. Kxe6 {[%clk 0:00:05]}  Ng5+ {[%clk 0:00:02]} 61. Kf5 {[%clk 0:00:05]}  Nxh3 {[%clk 0:00:02]} 62. Rf1 {[%clk 0:00:05]}  h5 {[%clk 0:00:01]} 63. Rh1 {[%clk 0:00:05]}  Nf2 {[%clk 0:00:01]} 64. Rxh5 {[%clk 0:00:06]}  Nd3 {[%clk 0:00:02]} 65. Rh8+ {[%clk 0:00:06]}  Kf7 {[%clk 0:00:02]} 66. Rh7+ {[%clk 0:00:07]}  Kf8 {[%clk 0:00:03]} 67. Ra7 {[%clk 0:00:08]}  Nxb2 {[%clk 0:00:02]} 68. Kg6 {[%clk 0:00:08]}  Ke8 {[%clk 0:00:01]} 69. f7+ {[%clk 0:00:09]}  Kf8 {[%clk 0:00:01]} 70. Ra8+ {[%clk 0:00:10]} 1-0


[Site "https://www.chess.com"]

[Event "Titled Tuesday Blitz January 03 Early 2023"]
[White "Chigaev, Maksim"]
[Black "Zohid6"]
[WhiteFideId "4108116"]
[WhiteElo "2628"]
[BlackElo "2748"]
[Result "0-1"]
[Round "03"]
[TimeControl "180+2"]
[Date "2023.01.03"]
[WhiteClock "0:00:29"]
[BlackClock "0:02:02"]

1. e4 {[%clk 0:03:00]}  e6 {[%clk 0:02:58]} 2. d4 {[%clk 0:03:00]}  d5 {[%clk 0:02:58]} 3. Nd2 {[%clk 0:03:01]}  h6 {[%clk 0:02:57]} 4. Ngf3 {[%clk 0:02:58]}  Nf6 {[%clk 0:02:57]} 5. e5 {[%clk 0:02:58]}  Nfd7 {[%clk 0:02:57]} 6. c3 {[%clk 0:02:59]}  c5 {[%clk 0:02:57]} 7. Bd3 {[%clk 0:02:59]}  Nc6 {[%clk 0:02:58]} 8. O-O {[%clk 0:03:00]}  g5 {[%clk 0:02:58]} 9. dxc5 {[%clk 0:02:53]}  Ndxe5 {[%clk 0:02:49]} 10. Nxe5 {[%clk 0:02:51]}  Nxe5 {[%clk 0:02:50]} 11. Bb5+ {[%clk 0:02:51]}  Bd7 {[%clk 0:02:49]} 12. Bxd7+ {[%clk 0:02:51]}  Qxd7 {[%clk 0:02:50]} 13. Nb3 {[%clk 0:02:49]}  Bg7 {[%clk 0:02:47]} 14. f4 {[%clk 0:02:50]}  gxf4 {[%clk 0:02:47]} 15. Bxf4 {[%clk 0:02:50]}  Nc4 {[%clk 0:02:46]} 16. Qe2 {[%clk 0:02:38]}  O-O-O {[%clk 0:02:41]} 17. Kh1 {[%clk 0:02:38]}  e5 {[%clk 0:02:33]} 18. Bg3 {[%clk 0:02:34]}  f5 {[%clk 0:02:33]} 19. Rad1 {[%clk 0:02:29]}  f4 {[%clk 0:02:32]} 20. Bf2 {[%clk 0:02:25]}  e4 {[%clk 0:02:25]} 21. Bd4 {[%clk 0:01:57]}  Bxd4 {[%clk 0:02:23]} 22. Rxd4 {[%clk 0:01:52]}  Rdf8 {[%clk 0:02:16]} 23. Qh5 {[%clk 0:01:46]}  Ne3 {[%clk 0:02:15]} 24. Re1 {[%clk 0:01:07]}  Rhg8 {[%clk 0:02:15]} 25. Qxh6 {[%clk 0:00:51]}  Rh8 {[%clk 0:02:05]} 26. Qg6 {[%clk 0:00:29]}  Rfg8 {[%clk 0:02:02]} 0-1


[Site "https://www.chess.com"]

[Event "Titled Tuesday Blitz January 03 Early 2023"]
[White "Pakleza, Zbigniew"]
[Black "Vokhidov, Shamsiddin"]
[WhiteFideId "1119290"]
[BlackFideId "14204223"]
[WhiteElo "2494"]
[BlackElo "2586"]
[Result "0-1"]
[Round "03"]
[TimeControl "180+2"]
[Date "2023.01.03"]
[WhiteClock "0:00:04"]
[BlackClock "0:00:05"]

1. d4 {[%clk 0:03:00]}  Nf6 {[%clk 0:03:00]} 2. Nf3 {[%clk 0:03:01]}  d5 {[%clk 0:03:00]} 3. Bf4 {[%clk 0:03:01]}  c5 {[%clk 0:03:00]} 4. c3 {[%clk 0:03:01]}  Nc6 {[%clk 0:02:58]} 5. Nbd2 {[%clk 0:03:02]}  cxd4 {[%clk 0:02:49]} 6. cxd4 {[%clk 0:03:03]}  Qb6 {[%clk 0:02:49]} 7. e3 {[%clk 0:03:03]}  Bf5 {[%clk 0:02:45]} 8. Qb3 {[%clk 0:02:59]}  e6 {[%clk 0:02:42]} 9. Qxb6 {[%clk 0:02:55]}  axb6 {[%clk 0:02:42]} 10. Bb5 {[%clk 0:02:56]}  Nd7 {[%clk 0:02:38]} 11. Ke2 {[%clk 0:02:55]}  Na7 {[%clk 0:02:31]} 12. a4 {[%clk 0:02:19]}  f6 {[%clk 0:02:22]} 13. Rhc1 {[%clk 0:02:16]}  Nxb5 {[%clk 0:01:22]} 14. axb5 {[%clk 0:02:17]}  Rxa1 {[%clk 0:01:22]} 15. Rxa1 {[%clk 0:02:17]}  g5 {[%clk 0:01:23]} 16. Bg3 {[%clk 0:02:13]}  h5 {[%clk 0:01:23]} 17. h4 {[%clk 0:02:06]}  g4 {[%clk 0:01:20]} 18. Ne1 {[%clk 0:02:05]}  Kf7 {[%clk 0:01:00]} 19. Ra7 {[%clk 0:01:56]}  e5 {[%clk 0:00:59]} 20. dxe5 {[%clk 0:01:48]}  fxe5 {[%clk 0:00:58]} 21. Rxb7 {[%clk 0:01:47]}  Bd6 {[%clk 0:00:58]} 22. e4 {[%clk 0:01:24]}  Bxe4 {[%clk 0:00:55]} 23. Nxe4 {[%clk 0:01:22]}  dxe4 {[%clk 0:00:56]} 24. Rxd7+ {[%clk 0:01:22]}  Ke6 {[%clk 0:00:55]} 25. Rb7 {[%clk 0:01:18]}  Bc5 {[%clk 0:00:48]} 26. b4 {[%clk 0:01:18]}  Bd4 {[%clk 0:00:35]} 27. Nc2 {[%clk 0:01:18]}  Ra8 {[%clk 0:00:32]} 28. Rh7 {[%clk 0:01:06]}  Ra2 {[%clk 0:00:23]} 29. Kd2 {[%clk 0:01:03]}  Kd5 {[%clk 0:00:19]} 30. Rxh5 {[%clk 0:01:02]}  Kc4 {[%clk 0:00:19]} 31. Rh8 {[%clk 0:00:39]}  Bc3+ {[%clk 0:00:20]} 32. Kd1 {[%clk 0:00:39]}  Kb3 {[%clk 0:00:20]} 33. Rd8 {[%clk 0:00:13]}  Rxc2 {[%clk 0:00:18]} 34. h5 {[%clk 0:00:13]}  Ra2 {[%clk 0:00:16]} 35. f3 {[%clk 0:00:11]}  Rxg2 {[%clk 0:00:10]} 36. fxe4 {[%clk 0:00:09]}  Rxg3 {[%clk 0:00:10]} 37. h6 {[%clk 0:00:09]}  Rh3 {[%clk 0:00:10]} 38. Rd6 {[%clk 0:00:09]}  Rh2 {[%clk 0:00:09]} 39. Rg6 {[%clk 0:00:09]}  Kxb4 {[%clk 0:00:08]} 40. Rxb6 {[%clk 0:00:09]}  g3 {[%clk 0:00:07]} 41. Rg6 {[%clk 0:00:09]}  g2 {[%clk 0:00:07]} 42. b6 {[%clk 0:00:08]}  Bd4 {[%clk 0:00:07]} 43. b7 {[%clk 0:00:08]}  Ba7 {[%clk 0:00:08]} 44. Ke1 {[%clk 0:00:02]}  Kc4 {[%clk 0:00:06]} 45. Rg7 {[%clk 0:00:02]}  Rh1+ {[%clk 0:00:04]} 46. Ke2 {[%clk 0:00:01]}  g1=Q {[%clk 0:00:04]} 47. Rxg1 {[%clk 0:00:02]}  Rxg1 {[%clk 0:00:05]} 48. Kf3 {[%clk 0:00:02]}  Rh1 {[%clk 0:00:05]} 49. Kg4 {[%clk 0:00:03]}  Rxh6 {[%clk 0:00:05]} 50. b8=Q {[%clk 0:00:04]}  Bxb8 {[%clk 0:00:05]} 0-1


[Site "https://www.chess.com"]

[Event "Titled Tuesday Blitz January 03 Early 2023"]
[White "Puranik, Abhimanyu"]
[Black "Preotu, Razvan"]
[WhiteFideId "5061245"]
[BlackFideId "2613280"]
[WhiteElo "2613"]
[BlackElo "2475"]
[Result "1-0"]
[Round "03"]
[TimeControl "180+2"]
[Date "2023.01.03"]
[WhiteClock "0:00:02"]
[BlackClock "0:00:01"]

1. e4 {[%clk 0:03:00]}  c5 {[%clk 0:02:59]} 2. Nc3 {[%clk 0:02:58]}  d6 {[%clk 0:02:59]} 3. Bb5+ {[%clk 0:02:55]}  Bd7 {[%clk 0:02:59]} 4. Bxd7+ {[%clk 0:02:51]}  Qxd7 {[%clk 0:03:00]} 5. d4 {[%clk 0:02:51]}  cxd4 {[%clk 0:03:00]} 6. Qxd4 {[%clk 0:02:52]}  Nc6 {[%clk 0:03:01]} 7. Qd2 {[%clk 0:02:50]}  g6 {[%clk 0:03:00]} 8. b3 {[%clk 0:02:46]}  Bh6 {[%clk 0:02:33]} 9. f4 {[%clk 0:02:43]}  Nf6 {[%clk 0:02:33]} 10. Bb2 {[%clk 0:02:41]}  e5 {[%clk 0:02:33]} 11. Nge2 {[%clk 0:02:41]}  O-O {[%clk 0:02:21]} 12. O-O-O {[%clk 0:02:40]}  Rad8 {[%clk 0:02:20]} 13. Kb1 {[%clk 0:02:38]}  Rfe8 {[%clk 0:02:17]} 14. Rhf1 {[%clk 0:02:29]}  Qg4 {[%clk 0:02:13]} 15. g3 {[%clk 0:02:23]}  exf4 {[%clk 0:02:13]} 16. Nxf4 {[%clk 0:02:18]}  Nxe4 {[%clk 0:02:06]} 17. Nxe4 {[%clk 0:02:18]}  Rxe4 {[%clk 0:02:07]} 18. Qd5 {[%clk 0:02:16]}  Re7 {[%clk 0:02:02]} 19. Bf6 {[%clk 0:02:14]}  Re5 {[%clk 0:01:41]} 20. Qd3 {[%clk 0:01:58]}  Rde8 {[%clk 0:01:00]} 21. Bxe5 {[%clk 0:01:56]}  dxe5 {[%clk 0:01:01]} 22. Nd5 {[%clk 0:01:56]}  Bg7 {[%clk 0:01:02]} 23. Qb5 {[%clk 0:01:48]}  Qc8 {[%clk 0:00:51]} 24. Nf6+ {[%clk 0:01:43]}  Bxf6 {[%clk 0:00:51]} 25. Rxf6 {[%clk 0:01:43]}  e4 {[%clk 0:00:52]} 26. Qd5 {[%clk 0:01:36]}  Re7 {[%clk 0:00:44]} 27. Rf4 {[%clk 0:01:18]}  e3 {[%clk 0:00:34]} 28. Re1 {[%clk 0:01:17]}  Qe8 {[%clk 0:00:33]} 29. Qd3 {[%clk 0:01:04]}  a5 {[%clk 0:00:29]} 30. Qe2 {[%clk 0:00:58]}  Nb4 {[%clk 0:00:25]} 31. Rd4 {[%clk 0:00:48]}  Qc6 {[%clk 0:00:23]} 32. Qc4 {[%clk 0:00:46]}  Qg2 {[%clk 0:00:21]} 33. Rd8+ {[%clk 0:00:39]}  Kg7 {[%clk 0:00:20]} 34. Qc3+ {[%clk 0:00:40]}  f6 {[%clk 0:00:19]} 35. a3 {[%clk 0:00:36]}  Nc6 {[%clk 0:00:18]} 36. Rd3 {[%clk 0:00:28]}  e2 {[%clk 0:00:17]} 37. Re3 {[%clk 0:00:28]}  Qxh2 {[%clk 0:00:08]} 38. Rxe7+ {[%clk 0:00:19]}  Nxe7 {[%clk 0:00:08]} 39. Qc7 {[%clk 0:00:18]}  Kf7 {[%clk 0:00:08]} 40. Qc4+ {[%clk 0:00:18]}  Kg7 {[%clk 0:00:08]} 41. Rxe2 {[%clk 0:00:18]}  Qg1+ {[%clk 0:00:06]} 42. Ka2 {[%clk 0:00:17]}  Nc6 {[%clk 0:00:07]} 43. g4 {[%clk 0:00:13]}  Ne5 {[%clk 0:00:02]} 44. Qc7+ {[%clk 0:00:12]}  Kh6 {[%clk 0:00:03]} 45. Qxb7 {[%clk 0:00:08]}  Qxg4 {[%clk 0:00:03]} 46. Rh2+ {[%clk 0:00:07]}  Kg5 {[%clk 0:00:04]} 47. Qxh7 {[%clk 0:00:06]}  Nf3 {[%clk 0:00:02]} 48. Qh6+ {[%clk 0:00:06]}  Kf5 {[%clk 0:00:02]} 49. Rf2 {[%clk 0:00:07]}  Qg3 {[%clk 0:00:02]} 50. Qe3 {[%clk 0:00:07]}  Kg4 {[%clk 0:00:03]} 51. Re2 {[%clk 0:00:01]}  f5 {[%clk 0:00:03]} 52. Qe6 {[%clk 0:00:02]}  Nh4 {[%clk 0:00:02]} 53. Qc6 {[%clk 0:00:01]}  Qf3 {[%clk 0:00:02]} 54. Qc4+ {[%clk 0:00:01]}  f4 {[%clk 0:00:02]} 55. Re6 {[%clk 0:00:01]}  g5 {[%clk 0:00:02]} 56. Rd6 {[%clk 0:00:01]}  Kg3 {[%clk 0:00:01]} 57. Rd3 {[%clk 0:00:02]} 1-0


[Site "https://www.chess.com"]

[Event "Titled Tuesday Blitz January 03 Early 2023"]
[White "Begmuratov, Khumoyun"]
[Black "Svane, Rasmus"]
[WhiteFideId "14210207"]
[BlackFideId "4657101"]
[WhiteElo "2387"]
[BlackElo "2623"]
[Result "0-1"]
[Round "03"]
[TimeControl "180+2"]
[Date "2023.01.03"]
[WhiteClock "0:00:02"]
[BlackClock "0:00:29"]

1. e4 {[%clk 0:03:00]}  c6 {[%clk 0:02:58]} 2. Nc3 {[%clk 0:02:55]}  d5 {[%clk 0:02:59]} 3. Nf3 {[%clk 0:02:55]}  dxe4 {[%clk 0:02:58]} 4. Nxe4 {[%clk 0:02:56]}  Nf6 {[%clk 0:02:59]} 5. Nxf6+ {[%clk 0:02:56]}  exf6 {[%clk 0:03:00]} 6. Bc4 {[%clk 0:02:57]}  Bd6 {[%clk 0:03:00]} 7. Qe2+ {[%clk 0:02:57]}  Be7 {[%clk 0:03:01]} 8. O-O {[%clk 0:02:56]}  O-O {[%clk 0:03:02]} 9. h3 {[%clk 0:02:55]}  Bd6 {[%clk 0:03:02]} 10. d4 {[%clk 0:02:55]}  Re8 {[%clk 0:03:02]} 11. Be3 {[%clk 0:02:50]}  Nd7 {[%clk 0:03:02]} 12. c3 {[%clk 0:02:47]}  Nb6 {[%clk 0:03:02]} 13. Bd3 {[%clk 0:02:46]}  Nd5 {[%clk 0:03:01]} 14. Qd2 {[%clk 0:02:46]}  Be6 {[%clk 0:02:58]} 15. Rfe1 {[%clk 0:02:46]}  Qd7 {[%clk 0:02:57]} 16. Bf1 {[%clk 0:02:42]}  Rad8 {[%clk 0:02:57]} 17. a4 {[%clk 0:02:34]}  Bf5 {[%clk 0:02:56]} 18. b4 {[%clk 0:02:23]}  Be4 {[%clk 0:02:53]} 19. Be2 {[%clk 0:02:13]}  Re7 {[%clk 0:02:43]} 20. b5 {[%clk 0:01:57]}  Rde8 {[%clk 0:02:42]} 21. bxc6 {[%clk 0:01:57]}  bxc6 {[%clk 0:02:43]} 22. Nh2 {[%clk 0:01:42]}  h6 {[%clk 0:02:35]} 23. Nf1 {[%clk 0:01:33]}  f5 {[%clk 0:02:26]} 24. f3 {[%clk 0:00:54]}  Nxe3 {[%clk 0:02:26]} 25. Qxe3 {[%clk 0:00:50]}  Bd5 {[%clk 0:02:22]} 26. Qd2 {[%clk 0:00:47]}  Qe6 {[%clk 0:01:58]} 27. Bd3 {[%clk 0:00:38]}  Qxe1 {[%clk 0:01:56]} 28. Rxe1 {[%clk 0:00:38]}  Rxe1 {[%clk 0:01:57]} 29. c4 {[%clk 0:00:36]}  Rxf1+ {[%clk 0:01:32]} 30. Kxf1 {[%clk 0:00:31]}  Be6 {[%clk 0:01:28]} 31. Kf2 {[%clk 0:00:18]}  Rb8 {[%clk 0:01:22]} 32. Qc3 {[%clk 0:00:13]}  c5 {[%clk 0:01:18]} 33. d5 {[%clk 0:00:12]}  Bd7 {[%clk 0:01:19]} 34. g3 {[%clk 0:00:12]}  f4 {[%clk 0:01:14]} 35. gxf4 {[%clk 0:00:11]}  Bxf4 {[%clk 0:01:15]} 36. h4 {[%clk 0:00:05]}  Bxa4 {[%clk 0:01:04]} 37. Ke1 {[%clk 0:00:03]}  Rb4 {[%clk 0:00:56]} 38. Qa3 {[%clk 0:00:04]}  a5 {[%clk 0:00:55]} 39. Be4 {[%clk 0:00:04]}  Bc7 {[%clk 0:00:53]} 40. h5 {[%clk 0:00:04]}  Bb3 {[%clk 0:00:53]} 41. Qa1 {[%clk 0:00:03]}  Bxc4 {[%clk 0:00:51]} 42. Kf2 {[%clk 0:00:03]}  a4 {[%clk 0:00:51]} 43. Qd1 {[%clk 0:00:03]}  Bd6 {[%clk 0:00:50]} 44. Qd2 {[%clk 0:00:03]}  a3 {[%clk 0:00:49]} 45. Qc3 {[%clk 0:00:02]}  a2 {[%clk 0:00:48]} 46. Qa3 {[%clk 0:00:02]}  Rb8 {[%clk 0:00:40]} 47. Qa5 {[%clk 0:00:02]}  Be5 {[%clk 0:00:30]} 48. d6 {[%clk 0:00:02]}  a1=Q {[%clk 0:00:29]} 0-1


[Site "https://www.chess.com"]

[Event "Titled Tuesday Blitz January 03 Early 2023"]
[White "Lenderman, Aleksandr"]
[Black "Cardoso Cardoso, Jose Gabriel"]
[WhiteFideId "2021285"]
[BlackFideId "4430492"]
[WhiteElo "2572"]
[BlackElo "2492"]
[Result "1-0"]
[Round "03"]
[TimeControl "180+2"]
[Date "2023.01.03"]
[WhiteClock "0:01:19"]
[BlackClock "0:00:03"]

1. Nf3 {[%clk 0:03:00]}  Nc6 {[%clk 0:02:58]} 2. d4 {[%clk 0:02:50]}  d6 {[%clk 0:02:54]} 3. e4 {[%clk 0:02:47]}  Nf6 {[%clk 0:02:53]} 4. Nc3 {[%clk 0:02:46]}  g6 {[%clk 0:02:53]} 5. Be2 {[%clk 0:02:45]}  Bg7 {[%clk 0:02:53]} 6. O-O {[%clk 0:02:45]}  O-O {[%clk 0:02:53]} 7. h3 {[%clk 0:02:41]}  e5 {[%clk 0:02:52]} 8. dxe5 {[%clk 0:02:38]}  Nxe5 {[%clk 0:02:53]} 9. Nxe5 {[%clk 0:02:37]}  dxe5 {[%clk 0:02:53]} 10. Be3 {[%clk 0:02:30]}  b6 {[%clk 0:02:48]} 11. Bc4 {[%clk 0:02:25]}  Bb7 {[%clk 0:02:41]} 12. Qf3 {[%clk 0:02:15]}  Qe7 {[%clk 0:02:39]} 13. Rad1 {[%clk 0:02:01]}  Rad8 {[%clk 0:02:35]} 14. a3 {[%clk 0:01:58]}  h6 {[%clk 0:02:31]} 15. Rd3 {[%clk 0:01:45]}  Rxd3 {[%clk 0:02:18]} 16. cxd3 {[%clk 0:01:46]}  Rd8 {[%clk 0:02:17]} 17. g4 {[%clk 0:01:45]}  Bc8 {[%clk 0:01:48]} 18. g5 {[%clk 0:01:42]}  hxg5 {[%clk 0:01:48]} 19. Bxg5 {[%clk 0:01:43]}  c6 {[%clk 0:01:48]} 20. Qg3 {[%clk 0:01:35]}  Qd6 {[%clk 0:01:42]} 21. Qh4 {[%clk 0:01:35]}  Re8 {[%clk 0:00:53]} 22. f4 {[%clk 0:01:33]}  Qc5+ {[%clk 0:00:32]} 23. Kg2 {[%clk 0:01:29]}  Nh7 {[%clk 0:00:26]} 24. Bxf7+ {[%clk 0:01:23]}  Kxf7 {[%clk 0:00:24]} 25. Qxh7 {[%clk 0:01:23]}  exf4 {[%clk 0:00:02]} 26. Rxf4+ {[%clk 0:01:22]}  Ke6 {[%clk 0:00:03]} 27. Qxg6+ {[%clk 0:01:20]}  Kd7 {[%clk 0:00:03]} 28. Rf7+ {[%clk 0:01:19]} 1-0


[Site "https://www.chess.com"]

[Event "Titled Tuesday Blitz January 03 Early 2023"]
[White "Drozdowski, Kacper"]
[Black "Rakhmatullaev, Almas"]
[WhiteFideId "1136720"]
[BlackFideId "14205793"]
[WhiteElo "2448"]
[BlackElo "2275"]
[Result "1-0"]
[Round "03"]
[TimeControl "180+2"]
[Date "2023.01.03"]
[WhiteClock "0:00:59"]
[BlackClock "0:00:02"]

1. e4 {[%clk 0:03:00]}  e5 {[%clk 0:02:59]} 2. Nf3 {[%clk 0:03:00]}  Nf6 {[%clk 0:03:00]} 3. Nc3 {[%clk 0:03:00]}  Nc6 {[%clk 0:03:00]} 4. Bb5 {[%clk 0:03:00]}  Nd4 {[%clk 0:02:58]} 5. Bc4 {[%clk 0:02:59]}  d6 {[%clk 0:02:39]} 6. h3 {[%clk 0:02:58]}  Be6 {[%clk 0:02:35]} 7. Bxe6 {[%clk 0:02:56]}  fxe6 {[%clk 0:02:35]} 8. d3 {[%clk 0:02:56]}  Be7 {[%clk 0:02:34]} 9. Nxd4 {[%clk 0:02:56]}  exd4 {[%clk 0:02:35]} 10. Ne2 {[%clk 0:02:56]}  c5 {[%clk 0:02:31]} 11. c3 {[%clk 0:02:56]}  dxc3 {[%clk 0:02:31]} 12. bxc3 {[%clk 0:02:54]}  d5 {[%clk 0:02:28]} 13. Qb3 {[%clk 0:02:48]}  Qb6 {[%clk 0:01:53]} 14. Qc2 {[%clk 0:02:38]}  Qc6 {[%clk 0:01:48]} 15. exd5 {[%clk 0:02:33]}  exd5 {[%clk 0:01:42]} 16. O-O {[%clk 0:02:33]}  O-O-O {[%clk 0:01:40]} 17. a4 {[%clk 0:02:22]}  g5 {[%clk 0:01:32]} 18. Ng3 {[%clk 0:02:14]}  g4 {[%clk 0:01:28]} 19. h4 {[%clk 0:02:14]}  Nd7 {[%clk 0:01:16]} 20. Nf5 {[%clk 0:02:12]}  Bf6 {[%clk 0:01:15]} 21. Bf4 {[%clk 0:02:12]}  Nf8 {[%clk 0:01:05]} 22. Rfe1 {[%clk 0:02:05]}  Ng6 {[%clk 0:01:03]} 23. Bg3 {[%clk 0:02:02]}  h5 {[%clk 0:00:53]} 24. a5 {[%clk 0:02:01]}  Rhe8 {[%clk 0:00:50]} 25. a6 {[%clk 0:02:00]}  Rxe1+ {[%clk 0:00:49]} 26. Rxe1 {[%clk 0:01:57]}  Qxa6 {[%clk 0:00:49]} 27. d4 {[%clk 0:01:55]}  Qc6 {[%clk 0:00:07]} 28. dxc5 {[%clk 0:01:50]}  Qxc5 {[%clk 0:00:07]} 29. Nd6+ {[%clk 0:01:46]}  Rxd6 {[%clk 0:00:07]} 30. Bxd6 {[%clk 0:01:46]}  Qxd6 {[%clk 0:00:08]} 31. Qxg6 {[%clk 0:01:46]}  Be7 {[%clk 0:00:06]} 32. Qxh5 {[%clk 0:01:39]}  g3 {[%clk 0:00:06]} 33. Qg4+ {[%clk 0:01:39]}  Kc7 {[%clk 0:00:06]} 34. Qxg3 {[%clk 0:01:38]}  Qxg3 {[%clk 0:00:06]} 35. fxg3 {[%clk 0:01:35]}  Bf6 {[%clk 0:00:07]} 36. h5 {[%clk 0:01:31]}  a5 {[%clk 0:00:06]} 37. h6 {[%clk 0:01:31]}  a4 {[%clk 0:00:07]} 38. h7 {[%clk 0:01:24]}  b5 {[%clk 0:00:07]} 39. Kf2 {[%clk 0:01:23]}  a3 {[%clk 0:00:07]} 40. Ke2 {[%clk 0:01:19]}  b4 {[%clk 0:00:05]} 41. Rf1 {[%clk 0:01:06]}  a2 {[%clk 0:00:05]} 42. Rxf6 {[%clk 0:01:04]}  a1=Q {[%clk 0:00:05]} 43. h8=Q {[%clk 0:01:03]}  Qb2+ {[%clk 0:00:06]} 44. Kf3 {[%clk 0:01:00]}  Qxc3+ {[%clk 0:00:05]} 45. Kg4 {[%clk 0:01:00]}  Qd4+ {[%clk 0:00:06]} 46. Kh3 {[%clk 0:00:59]}  b3 {[%clk 0:00:02]} 47. Qg7+ {[%clk 0:00:59]} 1-0


[Site "https://www.chess.com"]